[Event "Titled Tuesday Blitz August 3 2021"]
[White "Baskin, Robert"]
[Black "Piesik, Piotr"]
[WhiteFideId "24662402"]
[BlackFideId "1136194"]
[WhiteElo "2462"]
[BlackElo "2354"]
[Result "1/2-1/2"]
[Round "06"]
[TimeControl "180+1"]
[Date "2021.08.03"]
[WhiteClock "0:00:04"]
[BlackClock "0:00:09"]

1. e4 {[%clk 0:03:00]}  g6 {[%clk 0:02:59]} 2. d4 {[%clk 0:03:00]}  Bg7 {[%clk 0:02:59]} 3. Nc3 {[%clk 0:02:59]}  c6 {[%clk 0:02:59]} 4. Nf3 {[%clk 0:02:55]}  d6 {[%clk 0:02:59]} 5. Be3 {[%clk 0:02:54]}  Nf6 {[%clk 0:03:00]} 6. Qd2 {[%clk 0:02:46]}  O-O {[%clk 0:02:59]} 7. Bd3 {[%clk 0:02:46]}  Nbd7 {[%clk 0:02:59]} 8. h3 {[%clk 0:02:46]}  Qc7 {[%clk 0:02:58]} 9. Ne2 {[%clk 0:02:46]}  e5 {[%clk 0:02:57]} 10. c3 {[%clk 0:02:44]}  d5 {[%clk 0:02:49]} 11. Nxe5 {[%clk 0:02:30]}  Nxe5 {[%clk 0:02:44]} 12. dxe5 {[%clk 0:02:29]}  Nxe4 {[%clk 0:02:44]} 13. Bxe4 {[%clk 0:02:23]}  dxe4 {[%clk 0:02:44]} 14. Bc5 {[%clk 0:02:21]}  Re8 {[%clk 0:02:39]} 15. Bd6 {[%clk 0:02:20]}  Qb6 {[%clk 0:02:38]} 16. O-O-O {[%clk 0:02:00]}  Be6 {[%clk 0:02:30]} 17. Kb1 {[%clk 0:01:58]}  Bf5 {[%clk 0:02:26]} 18. Qe3 {[%clk 0:01:54]}  Qxe3 {[%clk 0:02:24]} 19. fxe3 {[%clk 0:01:53]}  Bxe5 {[%clk 0:02:25]} 20. Bxe5 {[%clk 0:01:53]}  Rxe5 {[%clk 0:02:26]} 21. g4 {[%clk 0:01:52]}  Be6 {[%clk 0:02:26]} 22. Nf4 {[%clk 0:01:49]}  Kf8 {[%clk 0:02:21]} 23. Rd6 {[%clk 0:01:42]}  Re8 {[%clk 0:02:14]} 24. Rhd1 {[%clk 0:01:40]}  Bc4 {[%clk 0:02:10]} 25. b3 {[%clk 0:01:33]}  Bd3+ {[%clk 0:02:05]} 26. Kb2 {[%clk 0:01:33]}  Ba6 {[%clk 0:01:52]} 27. c4 {[%clk 0:01:29]}  R8e7 {[%clk 0:01:47]} 28. h4 {[%clk 0:01:24]}  h6 {[%clk 0:01:45]} 29. Kc3 {[%clk 0:01:18]}  Kg7 {[%clk 0:01:44]} 30. b4 {[%clk 0:01:12]}  Rc7 {[%clk 0:01:38]} 31. a4 {[%clk 0:01:06]}  b6 {[%clk 0:01:36]} 32. Rd8 {[%clk 0:00:45]}  Bc8 {[%clk 0:01:32]} 33. Rg1 {[%clk 0:00:32]}  a5 {[%clk 0:01:23]} 34. g5 {[%clk 0:00:26]}  axb4+ {[%clk 0:01:18]} 35. Kxb4 {[%clk 0:00:26]}  hxg5 {[%clk 0:01:03]} 36. hxg5 {[%clk 0:00:25]}  Bf5 {[%clk 0:01:04]} 37. Rh1 {[%clk 0:00:23]}  Rc8 {[%clk 0:01:04]} 38. Rhh8 {[%clk 0:00:14]}  Rxd8 {[%clk 0:01:03]} 39. Rxd8 {[%clk 0:00:15]}  Bg4 {[%clk 0:00:49]} 40. Rd6 {[%clk 0:00:15]}  c5+ {[%clk 0:00:43]} 41. Kb5 {[%clk 0:00:15]}  Rxg5 {[%clk 0:00:40]} 42. Kxb6 {[%clk 0:00:14]}  Re5 {[%clk 0:00:37]} 43. a5 {[%clk 0:00:14]}  g5 {[%clk 0:00:37]} 44. Nd5 {[%clk 0:00:14]}  Bc8 {[%clk 0:00:29]} 45. a6 {[%clk 0:00:11]}  Bxa6 {[%clk 0:00:29]} 46. Kxa6 {[%clk 0:00:12]}  g4 {[%clk 0:00:29]} 47. Kb5 {[%clk 0:00:11]}  g3 {[%clk 0:00:29]} 48. Nf4 {[%clk 0:00:11]}  Rg5 {[%clk 0:00:24]} 49. Rd5 {[%clk 0:00:11]}  Rg4 {[%clk 0:00:20]} 50. Rd2 {[%clk 0:00:10]}  Kf6 {[%clk 0:00:17]} 51. Kxc5 {[%clk 0:00:10]}  Kf5 {[%clk 0:00:16]} 52. Rd5+ {[%clk 0:00:09]}  Kf6 {[%clk 0:00:17]} 53. Rd2 {[%clk 0:00:08]}  Kf5 {[%clk 0:00:17]} 54. Rg2 {[%clk 0:00:08]}  Rg8 {[%clk 0:00:13]} 55. Kd4 {[%clk 0:00:07]}  Rd8+ {[%clk 0:00:13]} 56. Kc3 {[%clk 0:00:07]}  Kg4 {[%clk 0:00:12]} 57. c5 {[%clk 0:00:07]}  Kf3 {[%clk 0:00:12]} 58. Rd2 {[%clk 0:00:06]}  Rc8 {[%clk 0:00:10]} 59. Kd4 {[%clk 0:00:06]}  Rd8+ {[%clk 0:00:08]} 60. Nd5 {[%clk 0:00:07]}  g2 {[%clk 0:00:07]} 61. Rxg2 {[%clk 0:00:04]}  Kxg2 {[%clk 0:00:08]} 62. Kxe4 {[%clk 0:00:05]}  Kf2 {[%clk 0:00:08]} 63. c6 {[%clk 0:00:04]}  Rc8 {[%clk 0:00:08]} 64. c7 {[%clk 0:00:04]}  Ke2 {[%clk 0:00:08]} 65. Ke5 {[%clk 0:00:04]}  Rxc7 {[%clk 0:00:08]} 66. Nxc7 {[%clk 0:00:03]}  Kxe3 {[%clk 0:00:09]} 67. Kf6 {[%clk 0:00:03]}  Kd4 {[%clk 0:00:09]} 68. Kxf7 {[%clk 0:00:04]} 1/2-1/2


[Site "https://www.chess.com"]

[Event "Titled Tuesday Blitz August 3 2021"]
[White "Batsuren, Dambasuren"]
[Black "Hansen, Eric"]
[WhiteFideId "4902920"]
[BlackFideId "2606771"]
[WhiteElo "2371"]
[BlackElo "2568"]
[Result "1-0"]
[Round "06"]
[TimeControl "180+1"]
[Date "2021.08.03"]
[WhiteClock "0:00:03"]
[BlackClock "0:00:01"]

1. d4 {[%clk 0:03:00]}  Nf6 {[%clk 0:02:59]} 2. c4 {[%clk 0:03:01]}  g6 {[%clk 0:02:57]} 3. Nc3 {[%clk 0:03:01]}  d5 {[%clk 0:02:58]} 4. Bf4 {[%clk 0:03:00]}  Bg7 {[%clk 0:02:57]} 5. e3 {[%clk 0:03:01]}  O-O {[%clk 0:02:54]} 6. Rc1 {[%clk 0:03:01]}  c6 {[%clk 0:02:52]} 7. Nf3 {[%clk 0:03:00]}  Bg4 {[%clk 0:02:40]} 8. h3 {[%clk 0:03:00]}  Bxf3 {[%clk 0:02:40]} 9. Qxf3 {[%clk 0:03:01]}  e6 {[%clk 0:02:31]} 10. Bd3 {[%clk 0:03:01]}  Nbd7 {[%clk 0:02:29]} 11. O-O {[%clk 0:03:01]}  dxc4 {[%clk 0:02:28]} 12. Bxc4 {[%clk 0:03:02]}  Qe7 {[%clk 0:02:27]} 13. Bh2 {[%clk 0:02:48]}  e5 {[%clk 0:02:18]} 14. Rfd1 {[%clk 0:02:42]}  exd4 {[%clk 0:02:14]} 15. exd4 {[%clk 0:02:28]}  Nb6 {[%clk 0:02:15]} 16. Bb3 {[%clk 0:02:25]}  Rad8 {[%clk 0:02:15]} 17. Re1 {[%clk 0:02:14]}  Qb4 {[%clk 0:02:10]} 18. Bc7 {[%clk 0:01:26]}  Rde8 {[%clk 0:01:53]} 19. Be5 {[%clk 0:01:16]}  Nfd7 {[%clk 0:01:48]} 20. Bxg7 {[%clk 0:01:14]}  Rxe1+ {[%clk 0:01:47]} 21. Rxe1 {[%clk 0:01:15]}  Kxg7 {[%clk 0:01:47]} 22. Qf4 {[%clk 0:00:57]}  a5 {[%clk 0:01:42]} 23. Re8 {[%clk 0:00:38]}  Nf6 {[%clk 0:01:06]} 24. Rxf8 {[%clk 0:00:33]}  Qxf8 {[%clk 0:01:06]} 25. Qc7 {[%clk 0:00:34]}  Nbd7 {[%clk 0:00:33]} 26. Qxa5 {[%clk 0:00:33]}  Qd6 {[%clk 0:00:32]} 27. d5 {[%clk 0:00:34]}  b6 {[%clk 0:00:21]} 28. Qa3 {[%clk 0:00:19]}  c5 {[%clk 0:00:19]} 29. Qa4 {[%clk 0:00:14]}  Qe5 {[%clk 0:00:18]} 30. Qh4 {[%clk 0:00:13]}  Qe1+ {[%clk 0:00:17]} 31. Kh2 {[%clk 0:00:13]}  Qd2 {[%clk 0:00:17]} 32. Qg3 {[%clk 0:00:07]}  Qxb2 {[%clk 0:00:15]} 33. d6 {[%clk 0:00:07]}  Qd2 {[%clk 0:00:14]} 34. Nb5 {[%clk 0:00:07]}  Ne4 {[%clk 0:00:08]} 35. Qe3 {[%clk 0:00:03]}  Qxe3 {[%clk 0:00:04]} 36. fxe3 {[%clk 0:00:04]}  Kf6 {[%clk 0:00:02]} 37. Bd5 {[%clk 0:00:04]}  Nd2 {[%clk 0:00:01]} 38. Nc7 {[%clk 0:00:03]} 1-0


[Site "https://www.chess.com"]

[Event "Titled Tuesday Blitz August 3 2021"]
[White "Bazeev, German"]
[Black "Skatchkov, Pavel"]
[WhiteFideId "24119350"]
[BlackFideId "4121848"]
[WhiteElo "2462"]
[BlackElo "2476"]
[Result "1-0"]
[Round "06"]
[TimeControl "180+1"]
[Date "2021.08.03"]
[WhiteClock "0:00:47"]
[BlackClock "0:00:01"]

1. d4 {[%clk 0:03:00]}  Nf6 {[%clk 0:02:59]} 2. Nf3 {[%clk 0:02:59]}  e6 {[%clk 0:02:59]} 3. c4 {[%clk 0:02:59]}  d5 {[%clk 0:03:00]} 4. g3 {[%clk 0:02:58]}  Be7 {[%clk 0:02:58]} 5. Bg2 {[%clk 0:02:58]}  O-O {[%clk 0:02:58]} 6. O-O {[%clk 0:02:58]}  a5 {[%clk 0:02:59]} 7. Qc2 {[%clk 0:02:48]}  c6 {[%clk 0:02:58]} 8. Bg5 {[%clk 0:02:47]}  b6 {[%clk 0:02:58]} 9. Nbd2 {[%clk 0:02:47]}  Bb7 {[%clk 0:02:56]} 10. Rfd1 {[%clk 0:02:46]}  Na6 {[%clk 0:02:56]} 11. a3 {[%clk 0:02:45]}  Rc8 {[%clk 0:02:56]} 12. Bxf6 {[%clk 0:02:43]}  Bxf6 {[%clk 0:02:55]} 13. e4 {[%clk 0:02:44]}  Be7 {[%clk 0:02:12]} 14. Rac1 {[%clk 0:02:38]}  Rc7 {[%clk 0:01:53]} 15. h4 {[%clk 0:02:18]}  Qc8 {[%clk 0:01:42]} 16. Bh3 {[%clk 0:01:55]}  Qa8 {[%clk 0:01:32]} 17. Qb1 {[%clk 0:01:41]}  h6 {[%clk 0:01:20]} 18. cxd5 {[%clk 0:01:37]}  cxd5 {[%clk 0:01:21]} 19. e5 {[%clk 0:01:37]}  Rfc8 {[%clk 0:01:20]} 20. Bf1 {[%clk 0:01:36]}  Bc6 {[%clk 0:00:58]} 21. Qd3 {[%clk 0:01:24]}  Bb5 {[%clk 0:00:42]} 22. Qb1 {[%clk 0:01:24]}  Ba4 {[%clk 0:00:41]} 23. Rxc7 {[%clk 0:01:22]}  Rxc7 {[%clk 0:00:42]} 24. Rc1 {[%clk 0:01:22]}  Rc8 {[%clk 0:00:15]} 25. h5 {[%clk 0:01:21]}  Be8 {[%clk 0:00:14]} 26. Bd3 {[%clk 0:01:15]}  b5 {[%clk 0:00:14]} 27. Rxc8 {[%clk 0:01:13]}  Qxc8 {[%clk 0:00:12]} 28. Qf1 {[%clk 0:01:12]}  Qb7 {[%clk 0:00:08]} 29. Bb1 {[%clk 0:01:13]}  b4 {[%clk 0:00:04]} 30. Qd3 {[%clk 0:01:13]}  g6 {[%clk 0:00:05]} 31. hxg6 {[%clk 0:01:12]}  fxg6 {[%clk 0:00:06]} 32. a4 {[%clk 0:01:08]}  Kg7 {[%clk 0:00:05]} 33. b3 {[%clk 0:00:59]}  Qc6 {[%clk 0:00:06]} 34. Nf1 {[%clk 0:00:58]}  Qc3 {[%clk 0:00:06]} 35. Qxa6 {[%clk 0:00:54]}  Qxf3 {[%clk 0:00:05]} 36. Qxe6 {[%clk 0:00:55]}  Kf8 {[%clk 0:00:03]} 37. Ne3 {[%clk 0:00:52]}  Qe2 {[%clk 0:00:02]} 38. Bxg6 {[%clk 0:00:47]}  Bxg6 {[%clk 0:00:01]} 39. Qxg6 {[%clk 0:00:47]}  Qd1+ {[%clk 0:00:01]} 1-0


[Site "https://www.chess.com"]

[Event "Titled Tuesday Blitz August 3 2021"]
[White "Csonka, Balazs"]
[Black "Isajevsky, Anton"]
[WhiteFideId "742910"]
[BlackFideId "4142500"]
[WhiteElo "2404"]
[BlackElo "2510"]
[Result "1-0"]
[Round "06"]
[TimeControl "180+1"]
[Date "2021.08.03"]
[WhiteClock "0:00:06"]
[BlackClock "0:00:01"]

1. d4 {[%clk 0:03:00]}  d5 {[%clk 0:02:55]} 2. Bg5 {[%clk 0:03:01]}  h6 {[%clk 0:02:52]} 3. Bh4 {[%clk 0:03:00]}  c6 {[%clk 0:02:49]} 4. e3 {[%clk 0:02:59]}  Qb6 {[%clk 0:02:49]} 5. b3 {[%clk 0:02:55]}  Bf5 {[%clk 0:02:48]} 6. Nf3 {[%clk 0:02:52]}  e6 {[%clk 0:02:48]} 7. Bd3 {[%clk 0:02:51]}  Bxd3 {[%clk 0:02:44]} 8. Qxd3 {[%clk 0:02:52]}  Be7 {[%clk 0:02:44]} 9. Bg3 {[%clk 0:02:52]}  Nf6 {[%clk 0:02:38]} 10. O-O {[%clk 0:02:52]}  a5 {[%clk 0:02:23]} 11. c4 {[%clk 0:02:49]}  a4 {[%clk 0:02:19]} 12. Nc3 {[%clk 0:02:30]}  Qa6 {[%clk 0:01:46]} 13. Qb1 {[%clk 0:01:40]}  a3 {[%clk 0:01:15]} 14. c5 {[%clk 0:01:31]}  Nbd7 {[%clk 0:01:08]} 15. b4 {[%clk 0:01:30]}  b5 {[%clk 0:01:03]} 16. Qc1 {[%clk 0:01:23]}  O-O {[%clk 0:01:00]} 17. Rb1 {[%clk 0:01:23]}  Ne4 {[%clk 0:00:47]} 18. Nxe4 {[%clk 0:01:01]}  dxe4 {[%clk 0:00:47]} 19. Nd2 {[%clk 0:01:01]}  f5 {[%clk 0:00:45]} 20. Rb3 {[%clk 0:01:00]}  Nf6 {[%clk 0:00:36]} 21. Nb1 {[%clk 0:00:57]}  Qa4 {[%clk 0:00:32]} 22. Bd6 {[%clk 0:00:20]}  Nd5 {[%clk 0:00:20]} 23. Nc3 {[%clk 0:00:13]}  Nxc3 {[%clk 0:00:10]} 24. Qxc3 {[%clk 0:00:14]}  Rf7 {[%clk 0:00:09]} 25. Rc1 {[%clk 0:00:12]}  Bf6 {[%clk 0:00:08]} 26. h3 {[%clk 0:00:11]}  Rfa7 {[%clk 0:00:06]} 27. Rd1 {[%clk 0:00:11]}  Qa6 {[%clk 0:00:06]} 28. Qc2 {[%clk 0:00:11]}  Qc8 {[%clk 0:00:06]} 29. Rf1 {[%clk 0:00:10]}  Qe8 {[%clk 0:00:06]} 30. f3 {[%clk 0:00:09]}  exf3 {[%clk 0:00:06]} 31. Rxf3 {[%clk 0:00:10]}  Qg6 {[%clk 0:00:05]} 32. Qf2 {[%clk 0:00:08]}  Kh7 {[%clk 0:00:04]} 33. Rg3 {[%clk 0:00:07]}  Qh5 {[%clk 0:00:03]} 34. Qf3 {[%clk 0:00:08]}  Qf7 {[%clk 0:00:03]} 35. Rd3 {[%clk 0:00:07]}  Qd7 {[%clk 0:00:03]} 36. e4 {[%clk 0:00:06]}  fxe4 {[%clk 0:00:03]} 37. Qxe4+ {[%clk 0:00:07]}  Kh8 {[%clk 0:00:03]} 38. Rdf3 {[%clk 0:00:07]}  Qf7 {[%clk 0:00:01]} 39. Rg6 {[%clk 0:00:06]} 1-0


[Site "https://www.chess.com"]

[Event "Titled Tuesday Blitz August 3 2021"]
[White "Daggupati, Balaji"]
[Black "Martins, Igor Carvalho Ribeiro"]
[WhiteFideId "2090759"]
[BlackFideId "2162962"]
[WhiteElo "2671"]
[BlackElo "2504"]
[Result "1-0"]
[Round "06"]
[TimeControl "180+1"]
[Date "2021.08.03"]
[WhiteClock "0:00:46"]
[BlackClock "0:00:17"]

1. e4 {[%clk 0:03:00]}  c5 {[%clk 0:02:59]} 2. Nf3 {[%clk 0:03:00]}  d6 {[%clk 0:02:59]} 3. d4 {[%clk 0:03:00]}  cxd4 {[%clk 0:02:58]} 4. Nxd4 {[%clk 0:03:01]}  Nf6 {[%clk 0:02:58]} 5. Nc3 {[%clk 0:03:02]}  a6 {[%clk 0:02:58]} 6. Qe2 {[%clk 0:03:02]}  e5 {[%clk 0:02:55]} 7. Nf5 {[%clk 0:03:02]}  d5 {[%clk 0:02:46]} 8. Bg5 {[%clk 0:03:01]}  d4 {[%clk 0:02:46]} 9. O-O-O {[%clk 0:03:01]}  Be6 {[%clk 0:02:38]} 10. Nd5 {[%clk 0:02:52]}  Bxf5 {[%clk 0:02:32]} 11. Nxf6+ {[%clk 0:02:52]}  gxf6 {[%clk 0:02:32]} 12. exf5 {[%clk 0:02:53]}  Nd7 {[%clk 0:02:20]} 13. Bh4 {[%clk 0:02:52]}  Qa5 {[%clk 0:02:17]} 14. Kb1 {[%clk 0:02:52]}  Be7 {[%clk 0:02:08]} 15. f4 {[%clk 0:02:46]}  Rc8 {[%clk 0:01:23]} 16. fxe5 {[%clk 0:02:43]}  fxe5 {[%clk 0:01:13]} 17. Bxe7 {[%clk 0:02:38]}  Kxe7 {[%clk 0:01:13]} 18. Rxd4 {[%clk 0:02:39]}  Nf6 {[%clk 0:01:08]} 19. Rd1 {[%clk 0:02:32]}  Rhd8 {[%clk 0:01:07]} 20. g4 {[%clk 0:02:18]}  Rxd1+ {[%clk 0:01:04]} 21. Qxd1 {[%clk 0:02:19]}  Rd8 {[%clk 0:01:04]} 22. Qc1 {[%clk 0:02:17]}  Nxg4 {[%clk 0:00:57]} 23. Bc4 {[%clk 0:02:13]}  Qd2 {[%clk 0:00:49]} 24. Qg1 {[%clk 0:02:03]}  Nf2 {[%clk 0:00:46]} 25. f6+ {[%clk 0:01:55]}  Kxf6 {[%clk 0:00:39]} 26. Qf1 {[%clk 0:01:29]}  Qd1+ {[%clk 0:00:39]} 27. Qxd1 {[%clk 0:01:29]}  Rxd1+ {[%clk 0:00:40]} 28. Rxd1 {[%clk 0:01:30]}  Nxd1 {[%clk 0:00:41]} 29. Bd5 {[%clk 0:01:30]}  b6 {[%clk 0:00:40]} 30. Kc1 {[%clk 0:01:25]}  Nf2 {[%clk 0:00:40]} 31. Bb7 {[%clk 0:01:24]}  a5 {[%clk 0:00:39]} 32. Kd2 {[%clk 0:01:23]}  Ke7 {[%clk 0:00:34]} 33. Bg2 {[%clk 0:01:21]}  f5 {[%clk 0:00:34]} 34. h3 {[%clk 0:01:20]}  e4 {[%clk 0:00:27]} 35. Ke2 {[%clk 0:01:06]}  e3 {[%clk 0:00:27]} 36. Kxe3 {[%clk 0:01:06]}  Nd1+ {[%clk 0:00:27]} 37. Kf4 {[%clk 0:01:06]}  Nxb2 {[%clk 0:00:28]} 38. Kxf5 {[%clk 0:01:06]}  Na4 {[%clk 0:00:26]} 39. Ke5 {[%clk 0:01:00]}  Nc3 {[%clk 0:00:25]} 40. a3 {[%clk 0:01:01]}  Nb5 {[%clk 0:00:25]} 41. a4 {[%clk 0:01:01]}  Nd6 {[%clk 0:00:22]} 42. Bc6 {[%clk 0:01:00]}  h6 {[%clk 0:00:22]} 43. Kd5 {[%clk 0:00:56]}  Nf5 {[%clk 0:00:22]} 44. Ke5 {[%clk 0:00:51]}  Ne3 {[%clk 0:00:21]} 45. Be4 {[%clk 0:00:50]}  Nc4+ {[%clk 0:00:19]} 46. Kd5 {[%clk 0:00:49]}  Ne3+ {[%clk 0:00:17]} 47. Kc6 {[%clk 0:00:46]} 1-0


[Site "https://www.chess.com"]

[Event "Titled Tuesday Blitz August 3 2021"]
[White "De Silva, L M S T"]
[Black "Petesch, Gabriel"]
[WhiteFideId "9953698"]
[BlackFideId "2032465"]
[WhiteElo "1621"]
[BlackElo "2374"]
[Result "0-1"]
[Round "06"]
[TimeControl "180+1"]
[Date "2021.08.03"]
[WhiteClock "0:00:08"]
[BlackClock "0:00:18"]

1. e4 {[%clk 0:03:00]}  c6 {[%clk 0:02:59]} 2. d4 {[%clk 0:03:00]}  d5 {[%clk 0:02:57]} 3. Nc3 {[%clk 0:03:01]}  dxe4 {[%clk 0:02:57]} 4. Nxe4 {[%clk 0:03:02]}  Nf6 {[%clk 0:02:56]} 5. Nxf6+ {[%clk 0:03:01]}  exf6 {[%clk 0:02:53]} 6. c3 {[%clk 0:03:02]}  Bd6 {[%clk 0:02:51]} 7. Bd3 {[%clk 0:03:02]}  O-O {[%clk 0:02:50]} 8. Ne2 {[%clk 0:03:03]}  Re8 {[%clk 0:02:45]} 9. Qc2 {[%clk 0:03:03]}  g6 {[%clk 0:02:39]} 10. h4 {[%clk 0:03:02]}  f5 {[%clk 0:02:32]} 11. h5 {[%clk 0:03:02]}  Qf6 {[%clk 0:02:29]} 12. Bd2 {[%clk 0:02:55]}  Nd7 {[%clk 0:02:12]} 13. O-O-O {[%clk 0:02:53]}  c5 {[%clk 0:02:08]} 14. hxg6 {[%clk 0:02:32]}  hxg6 {[%clk 0:02:05]} 15. Rh3 {[%clk 0:02:27]}  cxd4 {[%clk 0:01:57]} 16. Nxd4 {[%clk 0:02:28]}  Bf8 {[%clk 0:01:46]} 17. Kb1 {[%clk 0:02:23]}  Bg7 {[%clk 0:01:43]} 18. Rdh1 {[%clk 0:02:22]}  Ne5 {[%clk 0:01:40]} 19. Bb5 {[%clk 0:02:10]}  Rd8 {[%clk 0:01:32]} 20. Qc1 {[%clk 0:02:08]}  f4 {[%clk 0:01:08]} 21. Rh7 {[%clk 0:02:03]}  g5 {[%clk 0:00:57]} 22. Ka1 {[%clk 0:02:02]}  Ng4 {[%clk 0:00:51]} 23. Bc4 {[%clk 0:01:33]}  Nxf2 {[%clk 0:00:39]} 24. R1h2 {[%clk 0:01:32]}  Ng4 {[%clk 0:00:35]} 25. R2h5 {[%clk 0:01:32]}  Bf5 {[%clk 0:00:27]} 26. Nxf5 {[%clk 0:01:28]}  Qxf5 {[%clk 0:00:28]} 27. Bb3 {[%clk 0:00:58]}  Nf6 {[%clk 0:00:23]} 28. Bc2 {[%clk 0:00:46]}  Qg4 {[%clk 0:00:21]} 29. Bd1 {[%clk 0:00:23]}  Qd7 {[%clk 0:00:18]} 30. Rxg7+ {[%clk 0:00:23]}  Kxg7 {[%clk 0:00:19]} 31. Rxg5+ {[%clk 0:00:23]}  Kf8 {[%clk 0:00:20]} 32. Bxf4 {[%clk 0:00:06]}  Qxd1 {[%clk 0:00:19]} 33. a4 {[%clk 0:00:06]}  Qxc1+ {[%clk 0:00:19]} 34. Bxc1 {[%clk 0:00:07]}  Rd1 {[%clk 0:00:19]} 35. Kb1 {[%clk 0:00:08]}  Ne4 {[%clk 0:00:18]} 36. Kc2 {[%clk 0:00:08]}  Rxc1+ {[%clk 0:00:17]} 37. Kxc1 {[%clk 0:00:08]}  Nxg5 {[%clk 0:00:18]} 0-1


[Site "https://www.chess.com"]

[Event "Titled Tuesday Blitz August 3 2021"]
[White "Demidov, Mikhail"]
[Black "Golubev, Mikhail"]
[WhiteFideId "4197143"]
[BlackFideId "14100983"]
[WhiteElo "2598"]
[BlackElo "2374"]
[Result "1-0"]
[Round "06"]
[TimeControl "180+1"]
[Date "2021.08.03"]
[WhiteClock "0:01:43"]
[BlackClock "0:00:43"]

1. Nf3 {[%clk 0:03:00]}  d6 {[%clk 0:02:59]} 2. g3 {[%clk 0:03:00]}  g6 {[%clk 0:02:59]} 3. d4 {[%clk 0:03:00]}  Bg7 {[%clk 0:03:00]} 4. Bg2 {[%clk 0:03:00]}  Nf6 {[%clk 0:03:00]} 5. b3 {[%clk 0:03:00]}  O-O {[%clk 0:03:00]} 6. Bb2 {[%clk 0:03:00]}  c5 {[%clk 0:03:00]} 7. O-O {[%clk 0:03:00]}  Ne4 {[%clk 0:02:49]} 8. Nbd2 {[%clk 0:02:49]}  Nxd2 {[%clk 0:02:35]} 9. Qxd2 {[%clk 0:02:49]}  Nc6 {[%clk 0:02:35]} 10. c4 {[%clk 0:02:45]}  Qa5 {[%clk 0:02:20]} 11. Bc3 {[%clk 0:02:41]}  Qc7 {[%clk 0:01:57]} 12. d5 {[%clk 0:02:40]}  Bxc3 {[%clk 0:01:57]} 13. Qxc3 {[%clk 0:02:41]}  Ne5 {[%clk 0:01:57]} 14. Nxe5 {[%clk 0:02:40]}  dxe5 {[%clk 0:01:57]} 15. a3 {[%clk 0:02:37]}  Bd7 {[%clk 0:01:44]} 16. Rfc1 {[%clk 0:02:35]}  Rab8 {[%clk 0:01:39]} 17. b4 {[%clk 0:02:34]}  b6 {[%clk 0:01:39]} 18. h4 {[%clk 0:02:30]}  Qd6 {[%clk 0:01:39]} 19. Rab1 {[%clk 0:02:29]}  Rfc8 {[%clk 0:01:39]} 20. e4 {[%clk 0:02:23]}  b5 {[%clk 0:01:22]} 21. Qe3 {[%clk 0:02:05]}  bxc4 {[%clk 0:01:03]} 22. bxc5 {[%clk 0:01:58]}  Rxb1 {[%clk 0:00:55]} 23. cxd6 {[%clk 0:01:57]}  Rxc1+ {[%clk 0:00:55]} 24. Qxc1 {[%clk 0:01:57]}  exd6 {[%clk 0:00:56]} 25. Qc3 {[%clk 0:01:56]}  Ba4 {[%clk 0:00:53]} 26. Kf1 {[%clk 0:01:52]}  Bb3 {[%clk 0:00:53]} 27. Ke1 {[%clk 0:01:52]}  Kf8 {[%clk 0:00:51]} 28. Bf3 {[%clk 0:01:45]}  h5 {[%clk 0:00:47]} 29. Bd1 {[%clk 0:01:45]}  Bxd1 {[%clk 0:00:45]} 30. Kxd1 {[%clk 0:01:46]}  Ke7 {[%clk 0:00:44]} 31. Qa5 {[%clk 0:01:44]}  Kd7 {[%clk 0:00:43]} 32. Qxa7+ {[%clk 0:01:43]} 1-0


[Site "https://www.chess.com"]

[Event "Titled Tuesday Blitz August 3 2021"]
[White "Diaz Perez, Michel Alejandro"]
[Black "Rodrigue-Lemieux, Shawn"]
[WhiteFideId "3517179"]
[BlackFideId "2620049"]
[WhiteElo "2337"]
[BlackElo "1763"]
[Result "1-0"]
[Round "06"]
[TimeControl "180+1"]
[Date "2021.08.03"]
[WhiteClock "0:00:20"]
[BlackClock "0:00:02"]

1. d4 {[%clk 0:03:00]}  Nf6 {[%clk 0:03:00]} 2. c4 {[%clk 0:03:00]}  e6 {[%clk 0:03:00]} 3. Nf3 {[%clk 0:03:00]}  d5 {[%clk 0:02:59]} 4. Nc3 {[%clk 0:03:00]}  Bb4 {[%clk 0:03:00]} 5. cxd5 {[%clk 0:02:52]}  exd5 {[%clk 0:03:01]} 6. Bg5 {[%clk 0:02:52]}  h6 {[%clk 0:03:00]} 7. Bh4 {[%clk 0:02:51]}  O-O {[%clk 0:02:58]} 8. e3 {[%clk 0:02:49]}  Bf5 {[%clk 0:02:57]} 9. Bd3 {[%clk 0:02:45]}  Bxd3 {[%clk 0:02:55]} 10. Qxd3 {[%clk 0:02:46]}  Nbd7 {[%clk 0:02:56]} 11. O-O {[%clk 0:02:44]}  c6 {[%clk 0:02:49]} 12. a3 {[%clk 0:02:29]}  Be7 {[%clk 0:02:46]} 13. b4 {[%clk 0:02:26]}  Ne4 {[%clk 0:02:41]} 14. Nxe4 {[%clk 0:02:23]}  Bxh4 {[%clk 0:02:30]} 15. Nd6 {[%clk 0:02:19]}  Rb8 {[%clk 0:02:25]} 16. b5 {[%clk 0:02:10]}  cxb5 {[%clk 0:02:10]} 17. Qxb5 {[%clk 0:02:08]}  Nb6 {[%clk 0:02:07]} 18. Nf5 {[%clk 0:01:47]}  Bf6 {[%clk 0:02:05]} 19. a4 {[%clk 0:01:46]}  Nc4 {[%clk 0:02:01]} 20. h3 {[%clk 0:01:27]}  Re8 {[%clk 0:01:59]} 21. Rfc1 {[%clk 0:01:24]}  a6 {[%clk 0:01:56]} 22. Qb3 {[%clk 0:01:22]}  b5 {[%clk 0:01:55]} 23. axb5 {[%clk 0:01:21]}  axb5 {[%clk 0:01:56]} 24. Ra7 {[%clk 0:01:16]}  Qb6 {[%clk 0:01:52]} 25. Rca1 {[%clk 0:01:12]}  Rb7 {[%clk 0:01:45]} 26. R7a6 {[%clk 0:01:07]}  Qd8 {[%clk 0:01:40]} 27. Ne1 {[%clk 0:01:01]}  Rb6 {[%clk 0:01:31]} 28. Ra7 {[%clk 0:00:55]}  Qc8 {[%clk 0:01:27]} 29. Ng3 {[%clk 0:00:49]}  b4 {[%clk 0:01:18]} 30. Nd3 {[%clk 0:00:48]}  Qb8 {[%clk 0:01:06]} 31. Nf4 {[%clk 0:00:44]}  Qd8 {[%clk 0:00:58]} 32. Nf5 {[%clk 0:00:43]}  Bg5 {[%clk 0:00:53]} 33. Nd3 {[%clk 0:00:42]}  g6 {[%clk 0:00:49]} 34. Ng3 {[%clk 0:00:42]}  Bh4 {[%clk 0:00:44]} 35. Nf1 {[%clk 0:00:39]}  Qd6 {[%clk 0:00:41]} 36. Nc5 {[%clk 0:00:31]}  Rbb8 {[%clk 0:00:30]} 37. R1a6 {[%clk 0:00:29]}  Qf8 {[%clk 0:00:26]} 38. Rd7 {[%clk 0:00:28]}  Rbd8 {[%clk 0:00:17]} 39. Rxd8 {[%clk 0:00:26]}  Rxd8 {[%clk 0:00:17]} 40. Qxb4 {[%clk 0:00:26]}  Be7 {[%clk 0:00:15]} 41. Rc6 {[%clk 0:00:23]}  Rb8 {[%clk 0:00:14]} 42. Qc3 {[%clk 0:00:21]}  Rb1 {[%clk 0:00:13]} 43. g3 {[%clk 0:00:21]}  Qa8 {[%clk 0:00:10]} 44. Rc7 {[%clk 0:00:20]}  Bd6 {[%clk 0:00:09]} 45. Rd7 {[%clk 0:00:21]}  Bxc5 {[%clk 0:00:08]} 46. dxc5 {[%clk 0:00:21]}  Rd1 {[%clk 0:00:02]} 47. Qf6 {[%clk 0:00:21]}  Ne5 {[%clk 0:00:01]} 48. Rd8+ {[%clk 0:00:21]}  Qxd8 {[%clk 0:00:02]} 49. Qxd8+ {[%clk 0:00:21]}  Kh7 {[%clk 0:00:03]} 50. Qf6 {[%clk 0:00:21]}  Nc4 {[%clk 0:00:01]} 51. Qxf7+ {[%clk 0:00:20]}  Kh8 {[%clk 0:00:02]} 52. c6 {[%clk 0:00:21]}  Ne5 {[%clk 0:00:02]} 53. Qf6+ {[%clk 0:00:20]} 1-0


[Site "https://www.chess.com"]